Cogmind - Beta 13 @@@ ROGUE MODE // 2024.03.04 @ 21:29:25 Player: eveschains Result: Self-destructed Performance ------------- Evolutions (1) 500 Regions Visited (4) 800 Robots Destroyed (14) 70 Value Destroyed (399) 399 Prototype IDs (2) 40 Alien Tech Used (0) 0 Bonus (77) 77 TOTAL SCORE: 1886 Bonus ------- Follower Combat Kills 77 Cogmind --------- Core Integrity 370/400 Matter 300/300 Energy 5/125 System Corruption 0% Temperature Cool (6) Movement Flying (117) Ox1 Location -9/Storage Parts ------- > --- POWER (1) -------- Light Ion Engine > --- PROPULSION (3) --- Flight Unit Flight Unit > --- UTILITY (3) ------ Small Storage Unit Weight Redist. System Shield Generator > --- WEAPON (2) ------- Medium Laser Particle Gun > --- INVENTORY (8) ---- Improved Ion Engine High-capacity Matter Pod (200) Hardened Light Armor Plating Light Assault Rifle Light Cannon Mini Grenade Launcher Mining Laser Hammer Peak State ------------ > --- POWER ------------ Light Ion Engine > --- PROPULSION ------- Flight Unit Flight Unit Flight Unit > --- UTILITY ---------- Small Storage Unit Weight Redist. System Shield Generator > --- WEAPON ----------- Medium Laser Particle Gun > --- INVENTORY -------- Improved Ion Engine Flight Unit Medium Matter Pod Hardened Light Armor Plating Light Assault Rifle Light Cannon Mining Laser Hammer [Rating: 13] Favorites ----------- Power Ion Engine Engine Ion Engine Propulsion Light Treads Treads Light Treads Wheel Wheel Flight Unit Flight Unit Utility Small Storage Unit Device Sensor Array Storage Small Storage Unit Processor Targeting Computer Weapon Medium Laser Energy Gun Medium Laser Ballistic Cannon Light Cannon Build | -11 -10 -10 -9 -9 ------- Run | Yrd Mat Min Mat Sto Slots Evolved 2 | . . . 2 . Power . | . . . . . Propulsion 1 | . . . 1 . Utility 1 | . . . 1 . Weapon . | . . . . . Parts Attached 27 | 6 4 1 13 3 Power 4 | 1 1 . 1 1 Engine 4 | 1 1 . 1 1 Core . | . . . . . Reactor . | . . . . . Propulsion 10 | 2 . 1 6 1 Treads 4 | 1 . . 3 . Leg . | . . . . . Wheel 2 | 1 . 1 . . Hover . | . . . . . Flight 4 | . . . 3 1 Utility 7 | 1 2 . 3 1 Device 4 | . 1 . 2 1 Storage 2 | 1 . . 1 . Processor 1 | . 1 . . . Hackware . | . . . . . Protection . | . . . . . Artifact . | . . . . . Weapon 6 | 2 1 . 3 . Energy Gun 5 | 2 1 . 2 . Energy Cannon . | . . . . . Ballistic Gun . | . . . . . Ballistic Cannon 1 | . . . 1 . Launcher . | . . . . . Special Weapon . | . . . . . Impact Weapon . | . . . . . Slashing Weapon . | . . . . . Piercing Weapon . | . . . . . Special Melee Weapon . | . . . . . Unidentified Prototypes . | . . . . . Parts Lost 6 | . . 3 1 2 Power 1 | . . 1 . . Propulsion 4 | . . 1 1 2 Utility 1 | . . 1 . . Weapon . | . . . . . Highest Loss Streak 3 | . . 3 1 1 To Critical Strikes . | . . . . . Average Slot Usage (%) 95 | . 97 94 88 100 Engine 10 | . 14 11 6 11 Treads 11 | . 14 14 13 . Wheel 10 | . 14 13 7 . Flight 7 | . . . 11 33 Device 12 | . 10 13 11 22 Storage 14 | . 14 14 17 11 Energy Gun 25 | . 28 28 21 22 Naked Turns . | . . . . . Heaviest Build 20 | 12 15 15 20 18 Greatest Support 26 | 10 10 10 26 18 Greatest Overweight (x) 2 | 1 1 2 1 . Average Overweight (x) . | . 1 . . . Largest Inventory Capacity 8 | 8 8 8 8 8 Average Capacity 7 | 6 8 8 8 8 Most Carried 8 | 6 8 8 8 8 Average Carried 7 | 2 7 7 6 7 Final Capacity 8 | 8 8 8 8 8 Final Carried 8 | 6 8 7 8 8 Class Distribution -------------------- 72% | Mutant 27% | Scavenger-Mutant Dominant Class ---------------- Mutant | -10/Materials Mutant | -10/Mines Scavenger-Mutant | -9/Materials Scavenger-Mutant | -9/Storage Resources | -11 -10 -10 -9 -9 ----------- Run | Yrd Mat Min Mat Sto Matter Collected 760 | 194 196 . 140 230 Remotely . | . . . . . Salvage Created 603 | . 260 . 246 97 Parts 17 | . 5 . 10 2 Haulers Intercepted 1 | . 1 . . . Recyclers Shooed 2 | . 2 . . . Parts Field Recycled . | . . . . . Retrieved Matter . | . . . . . Parts Self-Destructed . | . . . . . Prevented . | . . . . . Kills | -11 -10 -10 -9 -9 ------- Run | Yrd Mat Min Mat Sto Combat Hostiles Destroyed 11 | . 2 . 7 2 Guns 9 | . 1 . 6 2 AOE 1 | . 1 . . . Classes Destroyed 6 | . 4 . 2 . Worker 1 | . 1 . . . Hauler 1 | . 1 . . . Recycler 1 | . 1 . . . Swarmer 3 | . . . 3 . Grunt 3 | . 2 . . 1 Sentry 5 | . . . 4 1 Best Kill Streak 5 | . 3 . 5 1 Combat Bots Only 5 | . 2 . 5 1 Max Kills in Single Turn 2 | . 1 . 2 1 Gunslinging 1 | . . . 1 . Exploded 1 | . 1 . . . Melee . | . . . . . Uniques/NPCs Destroyed . | . . . . . Combat | -11 -10 -10 -9 -9 -------- Run | Yrd Mat Min Mat Sto Hostile Shots Fired 98 | . 18 19 41 20 Missed 27 | . 3 5 9 10 Damage Taken 936 | . 201 218 408 109 Core 130 | . 61 39 20 10 Absorbed by Shields 26 | . . . . 26 Core Remaining (%) 80 | 100 . 60 . . Volleys Fired 48 | . 24 . 14 10 Largest 2 | . 2 . 2 2 Hottest 115 | . 90 . 115 115 Shots Fired 96 | . 48 . 28 20 Gun 96 | . 48 . 28 20 Cannon . | . . . . . Launcher . | . . . . . Special . | . . . . . Kinetic . | . . . . . Thermal 72 | . 24 . 28 20 Explosive . | . . . . . Electromagnetic 24 | . 24 . . . Robot Hit Streak 18 | . 7 . 18 4 Robot Miss Streak 3 | . 3 . 1 2 Penetration Max . | . . . . . Secondary Targets 1 | . . . 1 . Max Gunslinging Chain 1 | . . . 1 . Shots Hit Robots 68 | . 30 . 25 13 Core Hits 24 | . 10 . 10 4 Critical Kills . | . . . . . Critical Parts Destroyed . | . . . . . Critical Strikes 6 | . . . 4 2 Burn 6 | . . . 4 2 Melee Attacks . | . . . . . Impact . | . . . . . Slashing . | . . . . . Piercing . | . . . . . Sneak Attacks . | . . . . . Combat Hostiles . | . . . . . Follow-up Attacks . | . . . . . Damage Inflicted 1031 | . 484 8 357 182 Guns 930 | . 391 . 357 182 Cannons . | . . . . . Explosions 93 | . 93 . . . Melee . | . . . . . Ramming 8 | . . 8 . . Kinetic . | . . . . . Thermal 805 | . 266 . 357 182 Explosive . | . . . . . Electromagnetic 218 | . 218 . . . Impact . | . . . . . Slashing . | . . . . . Piercing . | . . . . . Highest Corruption 7 | . . 7 . . Average Corruption 5 | . . 5 . . Corruption Purged . | . . . . . Corruption Blocked . | . . . . . Overload Shots . | . . . . . Overflow Damage 2 | . 2 . . . Projectiles . | . . . . . Explosions 2 | . 2 . . . Melee . | . . . . . Knockbacks . | . . . . . Impact . | . . . . . Kinetic . | . . . . . Secondary . | . . . . . Self-Inflicted Damage 3 | . . 3 . . Shots . | . . . . . Rammed 2 | . . 2 . . Targets Rammed 2 | . . 2 . . Kicked . | . . . . . Crushed . | . . . . . Highest Temperature 305 | . 305 . 129 271 Average Temperature 92 | . 94 . 47 124 Received Heat Transfer 449 | . 111 180 111 47 Effects 1 | . 1 . . . Energy Bleed 1 | . 1 . . . Siege Activations . | . . . . . Robots Corrupted . | . . . . . Combat Hostiles . | . . . . . Parts Fried 1 | . 1 . . . Impact Corruptions . | . . . . . Robots Melted 1 | . . . 1 . Combat Hostiles 1 | . . . 1 . Parts Melted 6 | . 1 . 3 2 Heat Transferred 2468 | . 618 . 1221 629 Parts Sabotaged . | . . . . . Parts Stolen . | . . . . . Parts Stripped . | . . . . . Power Chain Reactions 2 | . 2 . . . Alert | -11 -10 -10 -9 -9 ------- Run | Yrd Mat Min Mat Sto Peak Influence 285 | . 128 49 285 235 Initial 120 | . . 49 7 120 Average 89 | . 76 45 159 110 Maximum Alert Level 1 | . . . 1 1 Low Security (%) 87 | 100 100 100 59 82 Level 1 12 | . . . 40 17 Level 2 . | . . . . . Level 3 . | . . . . . Level 4 . | . . . . . Level 5 . | . . . . . High Security . | . . . . . Max Security . | . . . . . Squads Dispatched 4 | . 1 . 1 2 Investigation 2 | . 1 . 1 . Extermination . | . . . . . Reinforcement . | . . . . . Assault 2 | . . . . 2 Garrison . | . . . . . Intercept . | . . . . . Searches Triggered . | . . . . . Construction Impeded . | . . . . . Haulers Reinforced . | . . . . . Active Scanning Responses . | . . . . . Cargo Convoy Interrupts . | . . . . . Stealth | -11 -10 -10 -9 -9 --------- Run | Yrd Mat Min Mat Sto Distress Signals 3 | . 1 . 2 . Communications Jammed . | . . . . . Distress Signals . | . . . . . Times Spotted 42 | . 8 7 18 9 Peak Tracking Total 8 | . 4 8 6 7 Tactical Retreats 5 | . 1 2 2 . Traps | -11 -10 -10 -9 -9 ------- Run | Yrd Mat Min Mat Sto Traps Triggered 2 | . . . 1 1 Indirectly . | . . . . . Trap Hack Attempts . | . . . . . Triggered . | . . . . . Disarmed . | . . . . . Reprogrammed . | . . . . . Reused . | . . . . . Traps Extracted . | . . . . . Installed . | . . . . . Triggered . | . . . . . Machines | -11 -10 -10 -9 -9 ---------- Run | Yrd Mat Min Mat Sto Machines Disabled 4 | . 4 . . . Max in Single Turn 2 | . 2 . . . Machines Repaired . | . . . . . Machines Dismantled . | . . . . . Machines Sabotaged . | . . . . . Overloaded Fab Kills . | . . . . . Hacking | -11 -10 -10 -9 -9 --------- Run | Yrd Mat Min Mat Sto Machines Accessed 9 | . 3 . 3 3 Terminals 8 | . 3 . 2 3 Fabricators . | . . . . . Repair Stations . | . . . . . Recycling Units . | . . . . . Scanalyzers 1 | . . . 1 . Garrison Access . | . . . . . Total Hacks 21 | . 5 . 9 7 Successful 14 | . 4 . 7 3 Failed 7 | . 1 . 2 4 Catastrophic 3 | . . . 1 2 Database Lockouts . | . . . . . Manual 2 | . . . . 2 Terminals 18 | . 5 . 6 7 Fabricators . | . . . . . Repair Stations . | . . . . . Recycling Units . | . . . . . Scanalyzers 3 | . . . 3 . Garrison Access . | . . . . . Terminal Hacks 11 | . 4 . 4 3 Robot Analysis 1 | . 1 . . . Prototype ID Bank 1 | . . . 1 . Branch Access Points 1 | . . . 1 . Alert Level 2 | . 1 . 1 . Unreport Threat 2 | . . . . 2 Locate Traps 2 | . 1 . . 1 Dispatch Records 1 | . . . 1 . Reinforcement Status 1 | . 1 . . . Fabricator Hacks . | . . . . . Repair Station Hacks . | . . . . . Recycling Unit Hacks . | . . . . . Scanalyzer 3 | . . . 3 . Insert Component 2 | . . . 2 . Analyze 1 | . . . 1 . Garrison Access Hacks . | . . . . . Unauthorized Hacks . | . . . . . Terminals . | . . . . . Fabricators . | . . . . . Repair Stations . | . . . . . Recycling Units . | . . . . . Scanalyzers . | . . . . . Garrison Access . | . . . . . Data Cores Recovered . | . . . . . Used . | . . . . . Hacking Detections 8 | . 2 . 3 3 Full Trace Events . | . . . . . Feedback Events . | . . . . . Feedback Blocked . | . . . . . Robot Schematics Acquired . | . . . . . Robots Built . | . . . . . Authchips . | . . . . . Time . | . . . . . Total Robot Build Rating . | . . . . . Part Schematics Acquired 1 | . . . 1 . Parts Built . | . . . . . Authchips . | . . . . . Time . | . . . . . Total Part Build Rating . | . . . . . Parts Repaired . | . . . . . Time . | . . . . . Parts Recycled . | . . . . . Recycled Matter . | . . . . . Retrieved Matter . | . . . . . Retrieved Components . | . . . . . Parts Scanalyzed 1 | . . . 1 . Part Schematics Acquired 1 | . . . 1 . Parts Damaged . | . . . . . Bothacking | -11 -10 -10 -9 -9 ------------ Run | Yrd Mat Min Mat Sto Used RIF Installer . | . . . . . Robots Hacked . | . . . . . Non-combat . | . . . . . Combat . | . . . . . Robot Hacks Applied . | . . . . . Relay Couplers Released . | . . . . . Fabnet Peak Effective % . | . . . . . Robots Rewired . | . . . . . Allies Hacked . | . . . . . Hacks Repelled . | . . . . . Allies | -11 -10 -10 -9 -9 -------- Run | Yrd Mat Min Mat Sto Total Allies 2 | . . . . 2 Largest Group 2 | . . . . 2 Highest-Rated Group 62 | . . . . 62 Highest-Rated Ally 31 | . . . . 31 Total Orders . | . . . . . Ally Attacks 9 | . . . . 9 Total Damage 146 | . . . . 146 Kills 4 | . . . . 4 Allies Corrupted 1 | . . . . 1 Allies Melted . | . . . . . Intel | -11 -10 -10 -9 -9 ------- Run | Yrd Mat Min Mat Sto Robot Analysis Total 1 | . 1 . . . Derelict Logs Recovered 1 | . . 1 . . Drone Launches . | . . . . . Drone Recoveries . | . . . . . Exploration | -11 -10 -10 -9 -9 ------------- Run | Yrd Mat Min Mat Sto Turns Passed 911 | 78 351 141 224 117 Spaces Moved 787 | 52 212 139 258 126 Core 8 | 3 . 5 . . Treads 1 | . . . 1 . Legs . | . . . . . Wheels 463 | 49 212 134 68 . Hover . | . . . . . Flight 315 | . . . 189 126 Fastest Speed 34 | 50 95 80 34 34 Average Speed 69 | 86 95 94 48 34 Slowest Speed 160 | 95 95 150 160 34 Overloaded Moves . | . . . . . Propulsion Burnouts . | . . . . . Robots Hopped . | . . . . . Cave-ins Triggered . | . . . . . Exploration Rate (%) 28 | 5 42 41 22 31 Regions Visited 4 Branch Regions 2 Pre-discovered Areas . | . . . . . Known Exits Taken 1 | . . . 1 . Unknown Exits Taken 3 | 1 1 1 . . Scrap Searched . | . . . . . Spaces Dug . | . . . . . Terrain Destroyed 6 | . 6 . . . Melee . | . . . . . Projectile . | . . . . . AOE 6 | . 6 . . . Terrain Rammed . | . . . . . Walls Destroyed . | . . . . . Machines Disabled . | . . . . . Actions | -11 -10 -10 -9 -9 --------- Run | Yrd Mat Min Mat Sto Total 1049 | 82 314 147 326 180 Wait 136 | 19 63 6 31 17 Move 783 | 51 211 138 257 126 Hop . | . . . . . Pick Up 22 | 6 7 . 6 3 Fast Attach 11 | 6 1 . 3 1 Attach 9 | . 1 1 6 1 Detach 1 | . . . 1 . Swap 7 | . 2 . 4 1 Drop 12 | . 5 . 4 3 Fire 48 | . 24 . 14 10 Melee . | . . . . . Ram 2 | . . 2 . . Kick . | . . . . . Crush . | . . . . . Escape Stasis 18 | . . . . 18 Rewire . | . . . . . Trap . | . . . . . Miscellaneous . | . . . . . Route ------- -11/Scrapyard -10/Materials (discovered 2 exits: *Mat / [*Min]) -10/Mines -9/Materials (discovered 2 exits: Min / *Sto) -9/Storage History --------- Turn | Location | Event 44 | -11/Scrapyard | Discovered new exit (range 16) 79 | -11/Scrapyard | Entered Materials 253 | -10/Materials | Discovered new exit (range 6) 316 | -10/Materials | Build established: Mutant 391 | -10/Materials | Discovered new exit (range 8) 430 | -10/Materials | Entered Mines 470 | -10/Mines | Assembled infested the area 475 | -10/Mines | Assisted by a Guerilla fighting off Assembled 493 | -10/Mines | Learned Materials interactive machine intel 555 | -10/Mines | Discovered new exit (range 12) 571 | -10/Mines | Entered Materials 571 | -9/Materials | Evolved 2 slots: Propulsion x1, Utility x1 571 | -9/Materials | Discovered new exit (range 15) 572 | -9/Materials | Loaded intel: 18 interactive machine locations 592 | -9/Materials | Lost 3 parts (1p1n1u) 744 | -9/Materials | Identified exit to Mines 744 | -9/Materials | Identified exit to Storage 795 | -9/Materials | Entered Storage 822 | -9/Storage | Met a pair of Derelict thieves 912 | -9/Storage | Self-destructed Last Messages --------------- Purged threat record, alert level lowered. >>Alert(Purge) Purged threat record, alert level lowered. 00885_ Acquired 10 matter. 00886_ K-01 Serf cleans the Transfer Shaft. 00887_ Dropped Med. Matter Pod. 00888_ Acquired Hcp. Matter Pod. 00888_ K-01 Serf cleans the Transfer Shaft. 00889_ Acquired 71 matter. 00889_ Extracted 100 matter. 00891_ Acquired 29 matter. 00892_ K-01 Serf collects debris. 00895_ Connecting with Terminal... 00903_ K-01 Serf collects debris. 00907_ C-30 ARC bursts open, deploying its payload. 00907_ G-47 Trooper unfolds itself. 00907_ B-36 Bruiser unfolds itself. 00907_ G-34 Mercenary unfolds itself. 00909_ K-01 Serf cleans the Terminal. 00911_ Flight Unit destroyed. Map ----- +----------------------------------------------------+ | ??????????????????????# + " #?????????? | | ??????????????????????# ##T#!!! #?????????? | | ???????????????????##?# #### !#?????????? | | ???????????????????#T## #??######?????????? | | ???????????????????" + #?????????????????? | | ???????????????????### #################????? | | ?????????????????????# #???# #????? | | ???????????????#######+##??# """ """ #????? | | ???????????????# !#??# """ """ #????? | | ???????????????# #### """ """ #????? | | ???????????????# #*%+= #????? | | ???????????????# %#*[# #????? | | ???????????????# = /i=/ #????? | | ???????????????# #=[####+########????? | | ???????????????# #%g# ^ """ ##??????? | | ???????????????# #%!# "Y" "#??????? | | ???????????????# #[[# T#??????? | | ???????????????##########g=# "#??????? | | ?????????????????"" ""??#b/# !! ##??????? | | ?????????????????"" """?#*%# !! """ #???????? | | ??????????????????? """ # # """ #???????? | | ????????????????????? # + ! """%##??????? | | ??????????????????????? w g# #??????? | | ????????????????????????#m #####+#####??????? | | ????????????????????????# #?????????? | | ????????????????????????#@ #?????????? | | ??????????????????????#+#u #?????????? | | ????????????????????### #?????????? | | ????????????????????# #?????????? | | ????????????????????# ##????????? | | ???????????????????## a"" "#????????? | | ??????????????????#"" """ T" T#????????? | | ??????????????????#"T """ "" k"#????????? | | ??????????????????#"" """ ##????????? | | ??????????????????### #?????????? | | ????????????????????# +?????????? | | ????????????????????# #?????????? | | ????????????????????########### #?????????? | | ??????????????????????????????# #?????????? | | ??????????????????????????????+ #?????????? | | ??????????????????????????????# #?????????? | | ??????????????????????????????# #?????????? | | ??????????????????????????????# ?????????? | | ??????????????????????????????# ????????? | | ??????????????????????????????###+##????????? | | ????????????????????????????????????????????? | | ????????????????????????????????????????????? | | ????????????????????????????????????????????? | | ????????????????????????????????????????????? | | ????????????????????????????????????????????? | +----------------------------------------------------+ Best States ------------- Heat Dissipation 38 Energy Generation 12 Energy Capacity 265 Matter Stores 400 Matter Capacity 400 Sight Range 16 Robot Scan Range 14 Terrain Scan Density 10 Additional Mass Support 6 Evasion (%) 63 Targeting Accuracy 5 Recoil Reduction 2 Item Schematics ----------------- Lgt. Ion Engine | -9/Materials | Scanalyzed Robot Schematics ------------------ None Fabricated ------------ Nothing Alien Tech Used ----------------- None Achievements -------------- None Challenges ------------ None Game ------ Seed XenonPhasingBay Manual? 0 Play Time 00:27:38 Cumulative 85.4 hours Start 2024.02.28 @ 17:19:07 End 2024.03.04 @ 21:29:25 Sessions 6 Manual Loads 0 Difficulty Rogue Special Mode None Game No. 94 Rogue 94 Adventurer 0 Explorer 0 Win Type - Total 0 Types 0/0/0/0/0/0/0/0/0 Lore% 47 Gallery% 51 Achievement% 37 Wizard Run 0 Options --------- Layout 1 ASCII 0 Keyboard 0 Movement Mouse Keybinds 0 Fullscreen 2 Font 32/Tamsyn Map View 77x35 Zoom Use 12% Tactical HUD 1 Map Filters NONE Filters NONE Steam 1 RUN: 5c72e0a5-f342-4187-ab01-c958f0cd3f8a